fUST/lending_fUST_20260107
["ID","MTS","AMOUNT","RATE_DAILY","PERIOD"]
[400658134,1767772240815,-500.0,0.00015191,2]
[400658136,1767772240824,-500.0,0.00015191,2]
[400658138,1767772240834,-206.58822789,0.00015191,2]
[400658140,1767772240843,-500.0,0.00015191,2]
[400658142,1767772240852,-500.0,0.00015191,2]
[400658144,1767772240861,-500.0,0.00015191,2]
[400658146,1767772240870,-151.52117963,0.00015191,2]
[400658148,1767772240879,-587.0,0.00015213,2]
[400658150,1767772240889,-1200.0,0.00015316,2]
[400658152,1767772240898,-261.5353383,0.00015328,2]
[400658154,1767772240907,-229.44903306,0.00015328,2]
[400658156,1767772240916,-151.56017143,0.00015328,2]
[400658158,1767772240925,-500.0,0.00015328,2]
[400658160,1767772240935,-500.0,0.00015328,2]
[400658162,1767772240944,-990.0,0.00015328,2]
[400658164,1767772240953,-500.0,0.00015328,2]
[400658166,1767772240962,-500.0,0.00015328,2]
[400658168,1767772240971,-261.88445837,0.00015328,2]
[400658170,1767772240981,-500.0,0.00015328,2]
[400658172,1767772240990,-500.0,0.00015328,2]
[400658174,1767772240999,-500.0,0.00015328,2]
[400658176,1767772241008,-209.63078805,0.00015328,2]
[400658178,1767772241017,-210.83487892,0.00015328,2]
[400658180,1767772241026,-500.0,0.00015328,2]
[400658182,1767772241035,-2000.0,0.00015342,2]
[400658184,1767772241044,-2000.0,0.00015342,2]
[400658186,1767772241053,-2500.0,0.00015464,2]
[400658188,1767772241061,-2500.0,0.00015464,2]
[400658190,1767772241070,-2500.0,0.00015464,2]
[400658192,1767772241079,-2500.0,0.00015464,2]
[400658194,1767772241088,-152.02997996,0.00015465,2]
[400658196,1767772241098,-500.0,0.00015465,2]
[400658198,1767772241107,-259.14783661,0.00015465,2]
[400658200,1767772241116,-990.0,0.00015465,2]
[400658202,1767772241125,-306.8595936,0.00015465,2]
[400658204,1767772241136,-151.71242224,0.00015465,2]
[400658206,1767772241145,-154.82317524,0.00015465,2]
[400658208,1767772241154,-500.0,0.00015465,2]
[400658210,1767772241164,-500.0,0.00015465,2]
[400658212,1767772241173,-500.0,0.00015465,2]
[400658214,1767772241182,-155.41975541,0.00015465,2]
[400658216,1767772241191,-595.12568369,0.00015465,2]
[400658218,1767772241200,-661.42688269,0.00015523,3]
[400658220,1767772241210,-266.491439,0.00015602,2]
[400658222,1767772241219,-990.0,0.00015602,2]
[400658224,1767772241227,-500.0,0.00015602,2]
[400658226,1767772241237,-500.0,0.00015602,2]
[400658228,1767772241247,-500.0,0.00015602,2]
[400658230,1767772241258,-160.56827625,0.00015602,2]
[400658232,1767772241267,-177.57781539,0.00015602,2]
[400658234,1767772241277,-153.50612113,0.00015739,2]
[400658236,1767772241286,-990.0,0.00015739,2]
[400658238,1767772241297,-500.0,0.00015739,2]
[400658240,1767772241307,-206.74458148,0.00015739,2]
[400658242,1767772241316,-500.0,0.00015739,2]
[400658244,1767772241327,-621.60339535,0.00015739,2]
[400658246,1767772241338,-864.0,0.00015854,2]
[400658248,1767772241347,-1203.39831266,0.00015864,2]
[400658250,1767772241356,-990.0,0.00015876,2]
[400658252,1767772241366,-500.0,0.00015876,2]
[400658254,1767772241375,-500.0,0.00015876,2]
[400658256,1767772241384,-153.33527069,0.00015876,2]
[400658258,1767772241396,-2500.0,0.0001589,2]
[400658260,1767772241405,-2500.0,0.0001589,2]
[400658262,1767772241414,-8929.0,0.00015939,2]
[400658264,1767772241423,-3000.0,0.00016012,2]
[400658266,1767772241432,-3000.0,0.00016012,2]
[400658268,1767772241442,-3000.0,0.00016012,2]
[400658270,1767772241452,-3000.0,0.00016012,2]
[400658272,1767772241462,-990.0,0.00016013,2]
[400658274,1767772241471,-500.0,0.00016013,2]
[400658276,1767772241480,-500.0,0.00016013,2]
[400658278,1767772241490,-990.0,0.0001615,2]
[400658280,1767772241499,-500.0,0.0001615,2]
[400658282,1767772241508,-500.0,0.0001615,2]
[400658284,1767772241518,-1600.0,0.00016164,2]
[400658286,1767772241527,-990.0,0.00016287,2]
[400658288,1767772241537,-500.0,0.00016287,2]
[400658290,1767772241546,-364.24644296,0.00016287,2]
[400658292,1767772241556,-990.0,0.00016424,2]
[400658294,1767772241565,-500.0,0.00016424,2]
[400658296,1767772241575,-3000.0,0.00016438,2]
[400658298,1767772241584,-3000.0,0.00016438,2]
[400658300,1767772241593,-4951.45589412,0.00016507,2]
[400658302,1767772241603,-774.29394276,0.0001656,2]
[400658304,1767772241613,-3500.0,0.0001656,2]
[400658306,1767772241622,-3500.0,0.0001656,2]
[400658308,1767772241631,-2627.52709265,0.0001656,2]
[400658310,1767772241641,-990.0,0.00016561,2]
[400658312,1767772241650,-500.0,0.00016561,2]
[400658314,1767772241660,-823.0,0.0001669,2]
[400658316,1767772241669,-990.0,0.00016698,2]
[400658318,1767772241679,-500.0,0.00016698,2]
[400658320,1767772241688,-53819.04156786,0.00016778,2]
[400658322,1767772241698,-990.0,0.00016835,2]
[400658324,1767772241707,-500.0,0.00016835,2]
[400658326,1767772241716,-892.09554031,0.00016965,6]
[400658328,1767772241725,-990.0,0.00016972,2]
[400658330,1767772241735,-500.0,0.00016972,2]
[400658332,1767772241744,-3500.0,0.00016986,2]
[400658334,1767772241753,-3500.0,0.00016986,2]
[400658336,1767772241762,-379.78626886,0.00016991,2]
[400658338,1767772241779,-4000.0,0.00017108,2]
[400658341,1767772241791,-4000.0,0.00017108,2]
[400658343,1767772241801,-990.0,0.00017109,2]
[400658345,1767772241810,-500.0,0.00017109,2]
[400658347,1767772241820,-990.0,0.00017246,2]
[400658349,1767772241830,-302.47712024,0.00017246,2]
[400658351,1767772241839,-2400.0,0.0001726,2]
[400658353,1767772241849,-990.0,0.00017383,2]
[400658355,1767772241859,-1000.0,0.00017439,2]
[400658357,1767772241869,-990.0,0.0001752,2]
[400658359,1767772241879,-4000.0,0.00017534,2]
[400658361,1767772241888,-4000.0,0.00017534,2]
[400658363,1767772241898,-4500.0,0.00017656,2]
[400658365,1767772241908,-4500.0,0.00017656,2]
[400658367,1767772241918,-990.0,0.00017657,2]
[400658369,1767772241927,-990.0,0.00017794,2]
[400658371,1767772241936,-990.0,0.00017931,2]
[400658373,1767772241947,-990.0,0.00018068,2]
[400658375,1767772241956,-882.05613913,0.00018082,2]
[400658377,1767772241966,-4500.0,0.00018082,2]
[400658379,1767772241975,-31848.87772426,0.00018082,3]
[400658381,1767772241985,-5000.0,0.00018204,2]
[400658383,1767772241994,-5000.0,0.00018204,2]
[400658385,1767772242003,-990.0,0.00018205,2]
[400658387,1767772242013,-1152.0,0.0001831,2]
[400658389,1767772242023,-998.0,0.00018342,2]
[400658391,1767772242032,-802.30074464,0.00018356,2]
[400658393,1767772242042,-1140.52554158,0.00018406,8]
[400658395,1767772242052,-624.96845181,0.00018466,2]
[400658397,1767772242062,-2499.87380725,0.00018466,2]
[400658399,1767772242071,-250.875815,0.00018493,2]
[400658401,1767772242081,-838.56279606,0.0001863,2]
[400658403,1767772242090,-840.63909249,0.00018659,2]
[400658405,1767772242099,-5500.0,0.00018752,2]
[400658407,1767772242109,-5500.0,0.00018752,2]
[400658409,1767772242119,-876.56428572,0.00018851,2]
[400658411,1767772242128,-3506.25714287,0.00018851,2]
[400658413,1767772242137,-303.45210145,0.000189,2]
[400658415,1767772242147,-1041.66666667,0.00018974,2]
[400658417,1767772242156,-424.17687172,0.00018991,2]
[400658419,1767772242166,-1148.14949882,0.00019004,2]
[400658421,1767772242176,-352.8926,0.00019178,2]
[400658423,1767772242186,-352.8926,0.00019178,4]
[400658425,1767772242196,-352.8926,0.00019178,5]
[400658428,1767772242206,-200.0,0.00019178,2]
[400658430,1767772242215,-352.8926,0.00019178,2]
[400658432,1767772242225,-352.8926,0.00019178,4]
[400658433,1767772242233,-352.8926,0.00019178,5]
[400658436,1767772242242,-352.8926,0.00019178,2]
[400658438,1767772242256,-352.8926,0.00019178,4]
[400658440,1767772242266,-352.8926,0.00019178,5]
[400658442,1767772242275,-352.8926,0.00019178,2]
[400658444,1767772242284,-352.8926,0.00019178,4]
[400658446,1767772242294,-352.8926,0.00019178,5]
[400658448,1767772242303,-1764.4628,0.00019178,2]
[400658450,1767772242312,-900.0,0.00019178,2]
[400658452,1767772242323,-1000.0,0.00019183,2]
[400658454,1767772242334,-244.0,0.00019183,2]
[400658456,1767772242344,-258.12,0.000192,2]
[400658458,1767772242353,-243.07,0.000192,2]
[400658460,1767772242363,-25963.54,0.000192,2]
[400658462,1767772242372,-167.78,0.000192,2]
[400658464,1767772242381,-2811.62,0.000192,2]
[400658466,1767772242391,-159.0,0.00019205,3]
[400658468,1767772242400,-331.75246461,0.000193,2]
[400658470,1767772242410,-6000.0,0.000193,2]
[400658472,1767772242419,-1549.57669197,0.00019726,2]
[400658474,1767772242429,-346.1,0.00019728,2]
[400658476,1767772242439,-6500.0,0.00019848,2]
[400658478,1767772242448,-1404.09294467,0.00019848,11]
[400658480,1767772242459,-6963.87638829,0.0002,3]
[400658495,1767772242601,-1972.0,0.0002,2]
[400658497,1767772242610,-181.25348447,0.0002,2]
[400658499,1767772242620,-4951.45589412,0.00020013,2]
[400658501,1767772242630,-1613.0,0.00020087,2]
[400658503,1767772242640,-191.37491647,0.00020249,9]
[400658506,1767772242649,-2002.67735813,0.00020396,2]
[400658507,1767772242659,-468.56747457,0.00020991,2]
[400658509,1767772242668,-1000.0,0.00021102,10]
[400658512,1767772242677,-492.0,0.00021102,10]
[400658515,1767772242686,-1038.0,0.00021133,2]
[400658517,1767772242695,-1038.0,0.00021148,2]
[400658519,1767772242704,-1680.95293958,0.00021289,14]
[400658521,1767772242714,-346.1,0.0002134,2]
[400658523,1767772242723,-1038.0,0.00021363,2]
[400658525,1767772242732,-168.0,0.00021397,4]
[400658527,1767772242741,-191.37491647,0.00021494,10]
[400658529,1767772242750,-7889.07857145,0.00021571,2]
[400658531,1767772242761,-1038.0,0.00021673,2]
[400658533,1767772242770,-1038.0,0.00021844,2]
[400658535,1767772242780,-1038.0,0.00021881,2]
[400658537,1767772242789,-1038.0,0.000219,2]
[400658539,1767772242799,-250.875815,0.00021918,2]
[400658542,1767772242808,-471.84,0.00022,2]
[400658544,1767772242818,-1908.17,0.00022,7]
[400658546,1767772242828,-1161.0,0.00022037,2]
[400658548,1767772242838,-1038.0,0.00022074,2]
[400658550,1767772242847,-1038.0,0.00022095,2]
[400658552,1767772242857,-1038.0,0.00022169,2]
[400658554,1767772242867,-2811.62,0.000222,14]
[400658556,1767772242876,-1038.0,0.00022207,2]
[400658558,1767772242885,-1038.0,0.00022278,2]
[400658560,1767772242894,-243.07,0.000223,7]
[400658562,1767772242903,-25963.54,0.000223,2]
[400658564,1767772242912,-1038.0,0.00022345,2]
[400658566,1767772242921,-258.12,0.000224,7]
[400658568,1767772242931,-1038.0,0.0002242,2]
[400658570,1767772242940,-283.8,0.00022462,2]
[400658572,1767772242949,-300.0,0.00022466,2]
[400658574,1767772242958,-1038.0,0.00022521,2]
[400658576,1767772242967,-1038.0,0.00022532,2]
[400658578,1767772242977,-1038.0,0.00022635,2]
[400658580,1767772242986,-1038.0,0.00022692,2]
[400658582,1767772242995,-1969.72597232,0.00022731,16]
[400658584,1767772243004,-191.37491647,0.00022739,12]
[400658586,1767772243013,-1038.0,0.00022796,2]
[400658588,1767772243023,-1038.0,0.00022824,2]
[400658590,1767772243032,-1038.0,0.00022892,2]
[400658592,1767772243041,-1000.0,0.000229,2]
[400658594,1767772243050,-1000.0,0.000229,2]
[400658596,1767772243059,-1000.0,0.000229,2]
[400658598,1767772243069,-1000.0,0.000229,2]
[400658600,1767772243078,-1000.0,0.000229,2]
[400658602,1767772243088,-1000.0,0.000229,2]
[400658604,1767772243097,-1000.0,0.000229,2]
[400658606,1767772243106,-1000.0,0.000229,2]
[400658608,1767772243116,-1000.0,0.000229,2]
[400658610,1767772243125,-1000.0,0.000229,2]
[400658612,1767772243135,-1038.0,0.00022902,2]
[400658615,1767772243144,-346.1,0.00022951,2]
[400658617,1767772243153,-1038.0,0.00022968,2]
[400658619,1767772243162,-1038.0,0.00022971,2]
[400658621,1767772243171,-512.95807743,0.00022991,2]
[400658622,1767772243180,-450.0,0.00023014,2]
[400658624,1767772243190,-1038.0,0.00023154,2]
[400658626,1767772243199,-1000.0,0.00023212,10]
[400658629,1767772243209,-791.0,0.00023212,10]
[400658630,1767772243218,-1908.17,0.000233,7]
[400658632,1767772243227,-4951.45589412,0.00023518,2]
[400658635,1767772243237,-600.0,0.00023562,2]
[400658637,1767772243247,-2200.0,0.00023621,2]
[400658639,1767772243259,-500.0,0.00023773,2]
[400658641,1767772243269,-2811.62,0.000238,14]
[400658643,1767772243278,-2200.0,0.00023806,2]
[400658644,1767772243288,-191.37491647,0.00023985,13]
[400658647,1767772243299,-500.0,0.00024096,2]
[400658648,1767772243310,-750.0,0.0002411,2]
[400658651,1767772243321,-2269.33508349,0.00024172,19]
[400658652,1767772243331,-471.84,0.000242,2]
[400658653,1767772243341,-2200.0,0.00024303,2]
[400658654,1767772243350,-587.58501506,0.0002433,2]
[400658655,1767772243359,-346.1,0.00024563,2]
[400658656,1767772243369,-900.0,0.00024658,2]
[400658657,1767772243378,-500.0,0.00024658,2]
[400658658,1767772243388,-2000.0,0.00024659,7]
[400658659,1767772243398,-181.0,0.00024685,14]
[400658660,1767772243407,-243.07,0.000247,7]
[400658661,1767772243417,-25963.54,0.000247,2]
[400658662,1767772243428,-15924.41,0.000247,3]
[400658663,1767772243438,-2200.0,0.00024709,2]
[400658664,1767772243448,-2200.0,0.00024752,2]
[400658665,1767772243458,-500.0,0.00024795,2]
[400658666,1767772243468,-258.12,0.000248,7]
[400658667,1767772243478,-83116.4033036,0.000248,2]
[400658668,1767772243487,-622309.500941,0.000249,2]
[400658669,1767772243496,-151.0,0.000249,7]
[400658670,1767772243506,-390.92977,0.000249,7]
[400658671,1767772243516,-390.92977,0.000249,7]
[400658672,1767772243526,-151.0,0.000249,7]
[400658673,1767772243535,-390.92977,0.000249,7]
[400658674,1767772243545,-207.061221,0.000249,7]
[400658675,1767772243554,-390.92977,0.000249,7]
[400658676,1767772243564,-186.329815,0.000249,7]
[400658678,1767772243575,-186.329815,0.000249,7]
[400658680,1767772243585,-186.329815,0.000249,7]
[400658682,1767772243594,-186.329815,0.000249,7]
[400658684,1767772243604,-151.0,0.000249,7]
[400658686,1767772243614,-232.576988,0.000249,7]
[400658688,1767772243624,-151.0,0.000249,7]
[400658690,1767772243634,-151.0,0.000249,7]
[400658692,1767772243643,-300.0,0.000249,7]
[400658694,1767772243652,-164.70126,0.000249,7]
[400658696,1767772243661,-300.0,0.000249,7]
[400658698,1767772243671,-300.0,0.000249,7]
[400658700,1767772243681,-300.0,0.000249,7]
[400658702,1767772243690,-500.0,0.00024932,2]
[400658704,1767772243699,-500.0,0.00024967,2]
[400658706,1767772243708,-2200.0,0.00024977,2]
[400658708,1767772243717,-557.34868028,0.00024991,2]
[400658710,1767772243726,-500.0,0.00025069,2]
[400658712,1767772243736,-250.0,0.00025205,2]
[400658714,1767772243745,-1181.07580657,0.00025205,2]
[400658716,1767772243755,-500.0,0.00025206,2]
[400658718,1767772243764,-191.37491647,0.0002523,15]
[400658720,1767772243774,-157.01821301,0.00025259,5]
[400658722,1767772243783,-2811.62,0.000253,14]
[400658724,1767772243792,-250.875815,0.00025342,2]
[400658727,1767772243802,-500.0,0.00025343,2]
[400658729,1767772243811,-151.0,0.00025411,2]
[400658731,1767772243821,-156.587,0.00025411,2]
[400658733,1767772243830,-151.76560532,0.00025411,2]
[400658736,1767772243840,-30000.0,0.00025411,2]
[400658739,1767772243849,-151.0,0.00025411,7]
[400658741,1767772243858,-151.0,0.00025411,7]
[400658743,1767772243867,-151.0,0.00025411,7]
[400658745,1767772243876,-206.229278,0.00025411,7]
[400658747,1767772243886,-151.0,0.00025411,7]
[400658749,1767772243896,-206.229278,0.00025411,7]
[400658751,1767772243905,-151.0,0.00025411,7]
[400658753,1767772243914,-206.229278,0.00025411,7]
[400658755,1767772243923,-151.0,0.00025411,7]
[400658757,1767772243933,-206.229278,0.00025411,7]
[400658759,1767772243943,-2000.0,0.00025426,7]
[400658761,1767772243952,-500.0,0.0002548,2]
[400658763,1767772243962,-2200.0,0.0002553,7]
[400658765,1767772243971,-1000.0,0.00025533,10]
[400658767,1767772243980,-1000.0,0.00025533,10]
[400658768,1767772243990,-2578.91239248,0.00025614,22]
[400658770,1767772244000,-500.0,0.00025617,2]
[400658772,1767772244010,-350.0,0.00025753,2]
[400658774,1767772244019,-509.34709244,0.00025754,2]
[400658776,1767772244029,-31110.0,0.00025959,2]
[400658778,1767772244038,-1908.17,0.00026,7]
[400658780,1767772244048,-157.01821301,0.00026041,5]
[400658782,1767772244058,-2200.0,0.00026129,7]
[400658784,1767772244067,-346.1,0.00026175,2]
[400658786,1767772244076,-2000.0,0.00026193,7]
[400658788,1767772244086,-450.0,0.00026301,2]
[400658790,1767772244096,-500.0,0.00026318,7]
[400658792,1767772244105,-1974.17602471,0.00026413,2]
[400658794,1767772244114,-191.37491647,0.00026475,16]
[400658796,1767772244123,-2200.0,0.0002648,7]
[400658798,1767772244132,-32261.07,0.00026507,2]
[400658800,1767772244141,-2200.0,0.00026535,7]
[400658802,1767772244151,-500.0,0.00026611,7]
[400658804,1767772244160,-500.0,0.00026749,7]
[400658806,1767772244169,-2811.62,0.000268,14]
[400658808,1767772244179,-550.0,0.00026849,2]
[400658809,1767772244188,-288.74,0.0002685,2]
[400658811,1767772244197,-288.74,0.0002685,2]
[400658813,1767772244206,-471.84,0.000269,2]
[400658815,1767772244215,-500.0,0.00026909,7]
[400658817,1767772244225,-2000.0,0.0002696,7]
[400658819,1767772244234,-2200.0,0.00026974,7]
[400658821,1767772244243,-151.0,0.00026974,7]
[400658823,1767772244254,-193.081788,0.00026974,7]
[400658825,1767772244263,-151.0,0.00026974,7]
[400658827,1767772244272,-151.0,0.00026974,7]
[400658829,1767772244281,-151.0,0.00026974,7]
[400658830,1767772244291,-151.0,0.00026974,7]
[400658832,1767772244301,-151.0,0.00026974,2]
[400658834,1767772244310,-151.0,0.00026974,7]
[400658836,1767772244320,-673.621691,0.00026974,7]
[400658838,1767772244331,-673.621691,0.00026974,7]
[400658840,1767772244341,-673.621691,0.00026974,7]
[400658842,1767772244350,-187.815389,0.00026974,7]
[400658844,1767772244360,-673.621691,0.00026974,7]
[400658846,1767772244369,-187.815389,0.00026974,7]
[400658847,1767772244378,-187.815389,0.00026974,7]
[400658849,1767772244387,-187.815389,0.00026974,7]
[400658851,1767772244396,-1664.343388,0.00026974,7]
[400658853,1767772244405,-1664.343388,0.00026974,7]
[400658855,1767772244415,-1664.343388,0.00026974,7]
[400658857,1767772244424,-1664.343388,0.00026974,7]
[400658859,1767772244435,-151.0,0.00026974,7]
[400658861,1767772244444,-151.0,0.00026974,7]
[400658863,1767772244453,-151.0,0.00026974,7]
[400658865,1767772244462,-193.751702,0.00026974,7]
[400658867,1767772244472,-215.570059,0.00026974,7]
[400658869,1767772244481,-206.665209,0.00026974,7]
[400658871,1767772244492,-215.570059,0.00026974,7]
[400658873,1767772244501,-206.665209,0.00026974,7]
[400658874,1767772244511,-215.570059,0.00026974,7]
[400658876,1767772244520,-206.665209,0.00026974,7]
[400658878,1767772244531,-215.570059,0.00026974,7]
[400658881,1767772244541,-206.665209,0.00026974,7]
[400658882,1767772244551,-151.0,0.00026974,7]
[400658884,1767772244560,-601.73928313,0.00026991,2]
[400658886,1767772244569,-4951.45589412,0.00027023,2]
[400658888,1767772244579,-33454.72959,0.00027055,2]
[400658890,1767772244589,-2897.74117685,0.00027055,25]
[400658892,1767772244598,-2200.0,0.00027174,7]
[400658894,1767772244608,-210.20532748,0.00027342,2]
[400658896,1767772244618,-500.0,0.00027347,7]
[400658898,1767772244632,-2200.0,0.00027354,7]
[400658900,1767772244642,-223.83334036,0.00027397,2]
[400658902,1767772244652,-2410.47,0.00027397,2]
[400658904,1767772244662,-650.0,0.00027397,5]
[400658906,1767772244671,-154.121516,0.00027397,7]
[400658908,1767772244681,-151.0,0.00027397,7]
[400658910,1767772244690,-500.0,0.00027397,5]
[400658912,1767772244699,-514.81933417,0.00027397,5]
[400658914,1767772244709,-432.26,0.00027397,8]
[400658916,1767772244718,-25963.54,0.000274,2]
[400658918,1767772244728,-151.0,0.00027456,7]
[400658920,1767772244737,-151.0,0.00027456,7]
[400658922,1767772244746,-151.0,0.00027456,7]
[400658924,1767772244756,-151.0,0.00027456,7]
[400658925,1767772244765,-151.0,0.00027456,7]
[400658927,1767772244774,-206.889733,0.00027456,7]
[400658928,1767772244783,-151.0,0.00027456,7]
[400658929,1767772244793,-151.0,0.00027456,7]
[400658930,1767772244803,-151.0,0.00027456,7]
[400658931,1767772244812,-243.07,0.000275,7]
[400658932,1767772244821,-34692.55458483,0.00027603,2]
[400658933,1767772244830,-500.0,0.00027658,7]
[400658934,1767772244839,-191.37491647,0.0002772,17]
[400658935,1767772244848,-2000.0,0.00027727,7]
[400658936,1767772244858,-346.1,0.00027786,2]
[400658937,1767772244867,-500.0,0.00027862,7]
[400658938,1767772244876,-1000.0,0.00027945,5]
[400658939,1767772244885,-250.0,0.00027945,5]
[400658940,1767772244894,-250.0,0.00027945,5]
[400658941,1767772244904,-750.0,0.00027945,5]
[400658942,1767772244914,-174.0,0.00027973,27]
[400658943,1767772244923,-258.12,0.00028,7]
[400658944,1767772244932,-2200.0,0.00028017,7]
[400658945,1767772244941,-5000.0,0.00028038,2]
[400658946,1767772244950,-1000.0,0.00028086,30]
[400658947,1767772244960,-1000.0,0.00028086,30]
[400658948,1767772244969,-579.0,0.00028086,30]
[400658949,1767772244979,-35976.17910447,0.00028151,2]
[400658950,1767772244989,-2200.0,0.00028177,7]
[400658951,1767772244998,-2200.0,0.00028183,7]
[400658952,1767772245007,-2200.0,0.00028365,7]
[400658953,1767772245017,-2200.0,0.00028433,7]
[400658954,1767772245026,-850.0,0.00028493,5]
[400658955,1767772245035,-1345.06654584,0.00028493,5]
[400658956,1767772245151,-350.0,0.00028493,5]
[400658957,1767772245161,-350.0,0.00028493,5]
[400658958,1767772245171,-2000.0,0.00028494,7]
[400658959,1767772245179,-3225.21791894,0.00028497,27]
[400658960,1767772245188,-1908.17,0.000285,7]
[400658961,1767772245197,-3381.95125625,0.00028508,2]
[400658962,1767772245206,-5201.93331897,0.00028508,2]
[400658963,1767772245215,-1301.78511486,0.00028508,2]
[400658964,1767772245224,-2811.62,0.000286,14]
[400658965,1767772245233,-280.28268334,0.00028623,7]
[400658966,1767772245242,-2200.0,0.0002869,7]
[400658967,1767772245254,-5889.0957183,0.00028699,2]
[400658968,1767772245263,-2410.47,0.00028767,4]
[400658969,1767772245272,-250.875815,0.00028767,60]
[400658970,1767772245281,-300.0,0.00028795,2]
[400658971,1767772245291,-300.0,0.00028795,2]
[400658972,1767772245299,-300.0,0.00028795,2]
[400658973,1767772245309,-300.0,0.00028795,2]
[400658974,1767772245317,-300.0,0.00028822,2]
[400658975,1767772245329,-300.0,0.00028822,2]
[400658976,1767772245338,-300.0,0.00028822,2]
[400658977,1767772245347,-300.0,0.00028822,2]
[400658978,1767772245356,-191.37491647,0.00028965,19]
[400658979,1767772245365,-646.12988599,0.00028991,2]
[400658980,1767772245374,-2200.0,0.00028992,7]
[400658981,1767772245383,-450.0,0.00029041,5]
[400658982,1767772245393,-450.0,0.00029041,5]
[400658983,1767772245402,-950.0,0.00029041,5]
[400658984,1767772245411,-348.0,0.00029107,2]
[400658985,1767772245420,-2200.0,0.00029169,7]
[400658986,1767772245429,-2000.0,0.00029261,7]
[400658987,1767772245439,-2200.0,0.00029391,7]
[400658988,1767772245448,-346.1,0.00029398,3]
[400658989,1767772245457,-416.0,0.00029453,2]
[400658990,1767772245466,-157.018213,0.00029456,5]
[400658991,1767772245474,-500.0,0.00029534,7]
[400658993,1767772245484,-1050.0,0.00029589,5]
[400658994,1767772245493,-550.0,0.00029589,5]
[400658995,1767772245502,-550.0,0.00029589,5]
[400658996,1767772245512,-500.0,0.00029599,7]
[400658998,1767772245522,-471.84,0.000296,2]
[400659000,1767772245531,-5000.0,0.00029663,2]
[400659001,1767772245540,-500.0,0.00029696,7]
[400659002,1767772245549,-399.5009519,0.0002975,2]
[400659003,1767772245559,-500.0,0.00029807,7]
[400659004,1767772245567,-25963.54,0.000299,2]
[400659005,1767772245576,-167.78,0.000299,7]
[400659006,1767772245585,-151.0,0.000299,7]
[400659007,1767772245594,-151.0,0.000299,7]
[400659008,1767772245603,-234.643774,0.000299,7]
[400659009,1767772245612,-155.076774,0.000299,7]
[400659010,1767772245621,-2200.0,0.00029904,7]
[400659011,1767772245630,-3560.82631196,0.00029938,30]
[400659012,1767772245640,-2200.0,0.00029999,7]
[400659013,1767772245649,-243.07,0.0003,7]
[400659014,1767772245658,-184.0,0.0003,14]
[400659015,1767772245667,-1020.52354742,0.0003,7]
[400659016,1767772245677,-1001.03390951,0.0003,14]
[400659017,1767772245686,-2000.0,0.00030028,7]
[400659018,1767772245695,-10000.0,0.00030037,2]
[400659019,1767772245705,-2200.0,0.00030079,7]
[400659020,1767772245714,-258.12,0.000301,7]
[400659021,1767772245724,-2875.33898822,0.000301,7]
[400659022,1767772245733,-1908.17,0.000301,7]
[400659023,1767772245743,-2410.47,0.00030136,6]
[400659024,1767772245752,-1150.0,0.00030137,5]
[400659025,1767772245762,-650.0,0.00030137,5]
[400659026,1767772245771,-650.0,0.00030137,5]
[400659027,1767772245780,-500.0,0.00030137,15]
[400659028,1767772245790,-300.0,0.00030137,120]